fUSD/lending_fUSD_20240218
["ID","MTS","AMOUNT","RATE_DAILY","PERIOD"]
[314405124,1708294243633,-95151.5306,0.000379,2]
[314405125,1708294243642,-531098.17151309,0.000379,3]
[314405126,1708294243650,-92867.19753385,0.000379,3]
[314405127,1708294243666,-288937.73012217,0.000379,3]
[314405128,1708294243682,-30881.10890012,0.000379,3]
[314405141,1708294245472,-2871.74559478,0.00035,2]
[314405142,1708294245511,-5703.8,0.00035,2]
[314405143,1708294245636,-1424.45440522,0.00035,2]
[314405144,1708294245645,-39252.83301632,0.000379,3]
[314405161,1708295433563,-808.90122499,0.00028568,2]
[314405162,1708295433572,-174.71,0.00028569,2]
[314405163,1708295433582,-18.51682058,0.00032994,2]
[314405164,1708295433594,-1389.62266811,0.00032994,2]
[314405165,1708295433603,-693.1734216,0.00032995,4]
[314405166,1708295433613,-188.4006881,0.00032999,2]
[314405167,1708295433622,-150.0,0.00033,12]
[314405168,1708295433632,-695.45,0.00034022,2]
[314405169,1708295433641,-300.0,0.00034259,2]
[314405170,1708295433650,-958.82,0.0003446,2]
[314405171,1708295433660,-20000.00101356,0.00035,3]
[314405172,1708295433669,-155.64022283,0.00035516,2]
[314405173,1708295433679,-206.0,0.00035582,2]
[314405174,1708295433689,-211.0,0.00035582,2]
[314405175,1708295433699,-139.98662546,0.00035582,2]
[314405176,1708295433751,-65.01337454,0.00035582,2]
[314405177,1708295433762,-1000.0,0.000356,2]
[314405178,1708295433772,-317.07,0.00035667,2]
[314405179,1708295433782,-888.57,0.00035755,2]
[314405180,1708295433791,-1250.46,0.0003583,2]
[314405181,1708295433801,-969.42,0.00035872,2]
[314405182,1708295433810,-493.597711,0.00036,4]
[314405183,1708295433819,-270.13,0.00036094,2]
[314405184,1708295433829,-155.15,0.00036123,2]
[314405185,1708295433837,-171.5,0.00036193,2]
[314405186,1708295433846,-1570.96,0.00036253,2]
[314405187,1708295433856,-695.45,0.00036286,2]
[314405188,1708295433865,-152.9,0.00036379,2]
[314405189,1708295433874,-152.0,0.00036438,3]
[314405190,1708295433883,-155.15,0.00036499,2]
[314405191,1708295433892,-208.82,0.0003666,2]
[314405192,1708295433902,-1500.0,0.000367,2]
[314405193,1708295433912,-175.0,0.00036717,2]
[314405194,1708295433921,-958.82,0.0003675,2]
[314405195,1708295433930,-155.15,0.00036874,2]
[314405196,1708295433939,-155.0,0.00036898,2]
[314405197,1708295433948,-264.71552263,0.00036898,2]
[314405198,1708295433957,-353.24,0.000369,2]
[314405199,1708295433965,-3000.0,0.000369,2]
[314405200,1708295433974,-3000.0,0.000369,2]
[314405201,1708295433984,-3000.0,0.000369,2]
[314405202,1708295433993,-3000.0,0.000369,2]
[314405203,1708295434002,-3000.0,0.000369,2]
[314405204,1708295434011,-3000.0,0.000369,2]
[314405205,1708295434020,-3000.0,0.000369,2]
[314405206,1708295434029,-3000.0,0.000369,2]
[314405207,1708295434038,-3000.0,0.000369,2]
[314405208,1708295434047,-3000.0,0.000369,2]
[314405209,1708295434056,-3000.0,0.000369,2]
[314405210,1708295434065,-3000.0,0.000369,2]
[314405212,1708295434074,-3000.0,0.000369,2]
[314405213,1708295434084,-3000.0,0.000369,2]
[314405214,1708295434093,-3000.0,0.000369,2]
[314405215,1708295434102,-3000.0,0.000369,2]
[314405216,1708295434114,-5157.09746085,0.000369,2]
[314405217,1708295434123,-2174.4795,0.00036999,2]
[314405218,1708295434132,-1250.46,0.00037156,2]
[314405219,1708295434142,-225.0,0.00037215,2]
[314405220,1708295434151,-155.15,0.0003725,2]
[314405221,1708295434162,-888.57,0.00037399,2]
[314405222,1708295434172,-426.81950869,0.00037599,2]
[314405223,1708295434181,-1298.76042186,0.00037599,2]
[314405224,1708295434191,-155.15,0.00037626,2]
[314405225,1708295434200,-180.0,0.0003765,2]
[314405226,1708295434209,-155.0,0.00037696,4]
[314405227,1708295434219,-119303.4414,0.00037697,2]
[314405228,1708295434228,-481.03251107,0.00037698,2]
[314405229,1708295434237,-500.0,0.00037698,2]
[314405230,1708295434246,-39488.7513,0.00037699,2]
[314405231,1708295434256,-1000.0,0.00037699,2]
[314405232,1708295434266,-2500.0,0.00037699,2]
[314405233,1708295434275,-200.0889468,0.000377,2]
[314405234,1708295434284,-1719.63111908,0.000377,2]
[314405235,1708295434294,-171.41527608,0.000377,2]
[314405236,1708295434303,-211.0,0.000377,2]
[314405237,1708295434314,-200.26191922,0.0003771,2]
[314405238,1708295434325,-9700.0,0.00037797,2]
[314405239,1708295434335,-12394.9183,0.00037797,2]
[314405240,1708295434344,-5607.19999998,0.00037797,2]
[314405241,1708295434353,-603.5,0.00037798,2]
[314405242,1708295434363,-290.76569401,0.00037798,2]
[314405243,1708295434372,-546.96129113,0.00037798,2]
[314405244,1708295434381,-500.0,0.00037798,2]
[314405245,1708295434390,-569.40853215,0.00037798,2]
[314405246,1708295434400,-500.0,0.00037798,2]
[314405247,1708295434410,-627.49,0.00037798,2]
[314405248,1708295434419,-500.0,0.00037798,2]
[314405249,1708295434428,-475.68152928,0.00037798,2]
[314405250,1708295434437,-546.66689023,0.00037798,2]
[314405251,1708295434447,-500.0,0.00037798,2]
[314405252,1708295434456,-500.0,0.00037798,2]
[314405253,1708295434465,-500.0,0.00037798,2]
[314405254,1708295434474,-500.0,0.00037798,2]
[314405255,1708295434484,-152.70661218,0.00037798,2]
[314405256,1708295434494,-500.0,0.00037798,2]
[314405257,1708295434503,-500.0,0.00037798,2]
[314405258,1708295434512,-610.27239632,0.00037798,2]
[314405259,1708295434521,-500.0,0.00037798,2]
[314405260,1708295434531,-500.0,0.00037798,2]
[314405261,1708295434541,-500.0,0.00037798,2]
[314405262,1708295434549,-536.93763146,0.00037798,2]
[314405263,1708295434558,-261.19647276,0.00037798,2]
[314405264,1708295434568,-1784.05963179,0.00037798,2]
[314405265,1708295434578,-19181.33175114,0.00037798,2]
[314405266,1708295434587,-430.54820779,0.00037798,11]
[314405267,1708295434597,-771.98404556,0.00037798,2]
[314405268,1708295434606,-1431.65,0.00037798,2]
[314405269,1708295434615,-514.78,0.00037798,2]
[314405270,1708295434624,-500.0,0.00037798,2]
[314405271,1708295434633,-138794.18735745,0.00037799,2]
[314405272,1708295434645,-24399.47987792,0.00037799,2]
[314405273,1708295434657,-14285.01344958,0.00037799,2]
[314405274,1708295434668,-38149.69831125,0.00037799,2]
[314405275,1708295434682,-521.46,0.00037799,2]
[314405276,1708295434701,-555.77426914,0.00037799,2]
[314405277,1708295434716,-351.48000001,0.00037799,2]
[314405278,1708295434733,-1427.83538133,0.00037799,2]
[314405288,1708295440165,-500.0,0.00028567,2]
[314405289,1708295440175,-15.56383828,0.00032995,2]
[314405290,1708295440187,-290.25526591,0.00032995,2]
[314405291,1708295440230,-564.5648343,0.00032995,2]
[314405292,1708295440240,-4351.65219871,0.00037799,2]
[314405293,1708295440253,-1873.495,0.00037799,2]
[314405294,1708295440265,-6007.69005042,0.00037799,2]
[314405295,1708295440277,-396.6087831,0.00037799,2]
[314405296,1708295440308,-489.47653646,0.00037799,2]
[314405297,1708295440320,-13396.14878463,0.00037799,2]
[314405298,1708295440331,-1000.0,0.00037799,2]
[314405299,1708295440341,-45742.66513306,0.00037799,2]
[314405300,1708295440353,-912.31412449,0.00037799,2]
[314405301,1708295440365,-2179.37507382,0.00037799,2]
[314405302,1708295440377,-1850.34705645,0.00037799,2]
[314405303,1708295440389,-2358.50063164,0.00037799,2]
[314405304,1708295440401,-1689.95371135,0.00037799,2]
[314405305,1708295440413,-387.72733961,0.00037799,2]
[314405306,1708295441109,-44879.11692958,0.00037799,2]
[314405307,1708295441123,-500.0,0.00037799,2]
[314405308,1708295441132,-6922.23952068,0.000378,3]
[314405309,1708295441144,-43192.5,0.000378,3]
[314405310,1708295441158,-1438.05,0.000378,3]
[314405312,1708295441171,-2144.25446566,0.000378,3]
[314405345,1708295441479,-10458.96398273,0.000378,3]
[314405347,1708295441495,-489.986689,0.000378,3]
[314405348,1708295441537,-270.5502,0.000378,3]
[314405349,1708295441554,-269.16,0.000378,3]
[314405350,1708295441571,-10225.54526085,0.000378,3]
[314405351,1708295441584,-56822.70143733,0.000378,3]
[314405352,1708295441594,-274.67,0.000378,2]
[314405353,1708295441604,-603.5,0.00037823,2]
[314405354,1708295441614,-500.0,0.00037823,2]
[314405355,1708295441623,-500.0,0.00037823,2]
[314405356,1708295441633,-627.49,0.00037823,2]
[314405357,1708295441643,-446.08465265,0.00037823,2]
[314405358,1708295441653,-500.0,0.00037823,2]
[314405359,1708295441663,-567.92900427,0.00037823,2]
[314405360,1708295441673,-500.0,0.00037823,2]
[314405361,1708295441683,-1431.65,0.00037823,2]
[314405362,1708295441693,-1078.56,0.00037873,2]
[314405363,1708295441703,-1000.0,0.00037891,10]
[314405364,1708295441713,-207.18825798,0.00037891,8]
[314405365,1708295441722,-227.53078599,0.00037891,8]
[314405366,1708295441733,-207.01234527,0.00037891,8]
[314405367,1708295441742,-3106.0543019,0.00037891,8]
[314405368,1708295441751,-1429.17507361,0.00037891,8]
[314405369,1708295441761,-941.59230277,0.00037891,8]
[314405370,1708295441772,-720.01306848,0.00037891,8]
[314405371,1708295441781,-198.00359383,0.00037891,8]
[314405372,1708295441795,-1000.0,0.00037891,10]
[314405373,1708295441805,-316.61072867,0.00037891,8]
[314405374,1708295441815,-562.41130401,0.00037891,8]
[314405376,1708295441826,-500.0,0.00037896,2]
[314405378,1708295441837,-30169.90780324,0.00037897,3]
[314405380,1708295441851,-10682.10662059,0.00037897,3]
[314405383,1708295441870,-234304.01980101,0.00037897,3]
[314405385,1708295441883,-2992.55013454,0.00037897,3]
[314405387,1708295441896,-992.65783246,0.00037897,3]
[314405389,1708295441909,-998.04914042,0.00037897,3]
[314405391,1708295441925,-3042.45749316,0.00037897,3]
[314405394,1708295441944,-156543.00000007,0.00037897,3]
[314405396,1708295441957,-11663.83157167,0.00037897,3]
[314405398,1708295441971,-33700.9667783,0.00037897,3]
[314405401,1708295441996,-8703.89291889,0.00037897,3]
[314405429,1708295442576,-1514.27364337,0.00037897,3]
[314405432,1708295442589,-283.60827373,0.00037897,3]
[314405434,1708295442601,-656.15400272,0.00037897,3]
[314405436,1708295442619,-387.02042021,0.00037897,3]
[314405437,1708295442631,-4638.43618621,0.00037897,3]
[314405438,1708295442643,-497.86715934,0.00037897,3]
[314405439,1708295442655,-795.35665588,0.00037897,3]
[314405440,1708295442677,-3078.22787811,0.00037897,3]
[314405441,1708295442706,-25513.80527832,0.00037897,3]
[314405442,1708295442715,-29772.37945137,0.00037897,2]
[314405443,1708295442730,-143083.29461733,0.00037897,2]
[314405444,1708295442740,-500.0,0.00037897,2]
[314405445,1708295442750,-500.0,0.00037897,2]
[314405446,1708295442759,-531.29852366,0.00037897,2]
[314405447,1708295442769,-500.0,0.00037897,2]
[314405448,1708295442778,-500.0,0.00037897,2]
[314405449,1708295442787,-563.62344063,0.00037897,2]
[314405450,1708295442797,-500.0,0.00037897,2]
[314405451,1708295442807,-500.0,0.00037897,2]
[314405452,1708295442816,-603.5,0.00037897,2]
[314405453,1708295442826,-603.5,0.00037897,2]
[314405454,1708295442835,-603.5,0.00037897,2]
[314405455,1708295442845,-603.5,0.00037897,2]
[314405456,1708295442855,-627.49,0.00037897,2]
[314405457,1708295442864,-627.49,0.00037897,2]
[314405458,1708295442874,-627.49,0.00037897,2]
[314405459,1708295442885,-627.49,0.00037897,2]
[314405460,1708295442894,-438.05899662,0.00037897,2]
[314405461,1708295442904,-1431.65,0.00037897,2]
[314405462,1708295442914,-1431.65,0.00037897,2]
[314405463,1708295442925,-1431.65,0.00037897,2]
[314405464,1708295442935,-1431.65,0.00037897,2]
[314405465,1708295442944,-500.0,0.00037897,2]
[314405466,1708295442953,-500.0,0.00037897,2]
[314405467,1708295442963,-500.0,0.00037897,2]
[314405468,1708295442972,-500.0,0.00037897,2]
[314405469,1708295442983,-211.13900055,0.00037897,2]
[314405470,1708295442993,-1280.00480958,0.00037898,3]
[314405471,1708295443003,-456165.22555957,0.00037898,2]
[314405472,1708295443013,-387.676003,0.00037898,2]
[314405474,1708295443022,-54770.3858801,0.00037898,2]
[314405475,1708295443031,-14556.4658762,0.00037898,2]
[314405476,1708295443041,-586627.9489293,0.00037898,2]
[314405477,1708295443051,-90515.56174711,0.00037898,2]
[314405478,1708295443060,-16757.0,0.00037899,7]
[314405479,1708295443070,-603.5,0.00037899,2]
[314405480,1708295443079,-603.5,0.00037899,2]
[314405481,1708295443089,-627.49,0.00037899,2]
[314405482,1708295443099,-627.49,0.00037899,2]
[314405483,1708295443109,-1431.65,0.00037899,2]
[314405485,1708295443123,-1431.65,0.00037899,2]
[314405487,1708295443132,-150.0,0.00037899,2]
[314405488,1708295443145,-170.36146497,0.00037899,2]
[314405490,1708295443156,-17427.47,0.000379,7]
[314405491,1708295443167,-1533.44630829,0.000379,2]
[314405492,1708295443176,-1253.28516,0.000379,2]
[314405493,1708295443186,-636312.202233,0.000379,3]
[314405494,1708295443196,-426.81950867,0.00037908,2]
[314405495,1708295443205,-1298.76042179,0.00037908,2]
[314405496,1708295443214,-603.5,0.00037908,2]
[314405497,1708295443224,-603.5,0.00037908,2]
[314405498,1708295443235,-627.49,0.00037908,2]
[314405499,1708295443244,-627.49,0.00037908,2]
[314405500,1708295443253,-1431.65,0.00037908,2]
[314405501,1708295443262,-1431.65,0.00037908,2]
[314405502,1708295443272,-1079.98859722,0.00037909,2]
[314405503,1708295443281,-603.5,0.00037934,2]
[314405504,1708295443290,-627.49,0.00037934,2]
[314405505,1708295443300,-1431.65,0.00037934,2]
[314405506,1708295443309,-276.0,0.00037935,2]
[314405507,1708295443319,-858.0,0.00037935,2]
[314405508,1708295443328,-429.0,0.00037935,2]
[314405509,1708295443337,-1005.0,0.00037935,2]
[314405510,1708295443347,-1138.0,0.00037935,2]
[314405511,1708295443356,-150.0,0.00037935,2]
[314405512,1708295443366,-2886.0,0.00037935,2]
[314405513,1708295443376,-321.0,0.00037935,2]
[314405514,1708295443385,-343.0,0.00037935,2]
[314405515,1708295443395,-454.0,0.00037935,2]
[314405516,1708295443404,-305.623,0.00037935,2]
[314405517,1708295443413,-523.773,0.00037935,2]
[314405518,1708295443423,-433.069,0.00037935,2]
[314405519,1708295443432,-1866.0,0.00037935,2]
[314405520,1708295443442,-19859.0,0.00037935,2]
[314405521,1708295443460,-2691.0,0.00037935,2]
[314405522,1708295443472,-4100.0,0.00037935,2]
[314405523,1708295443482,-440.645,0.00037935,2]
[314405524,1708295443492,-158.363,0.00037935,2]
[314405525,1708295443501,-708.883,0.00037935,2]
[314405526,1708295443511,-953.0,0.00037935,2]
[314405527,1708295443521,-1033.069,0.00037935,2]
[314405528,1708295443531,-842.0,0.00037935,2]
[314405529,1708295443541,-18124.47,0.00037935,7]
[314405530,1708295443551,-150.0,0.00037945,2]
[314405531,1708295443560,-150.0,0.00037945,7]
[314405532,1708295443571,-430.54820773,0.00037989,11]
[314405533,1708295443581,-603.5,0.00037999,2]
[314405534,1708295443591,-627.49,0.00037999,2]
[314405535,1708295443601,-1431.65,0.00037999,2]
[314405536,1708295443611,-12586.99999901,0.00038,2]
[314405537,1708295443620,-283.34,0.00038,2]
[314405538,1708295443630,-2438.95463491,0.00038,2]
[314405539,1708295443640,-2438.95463491,0.00038,2]
[314405540,1708295443649,-2438.95463491,0.00038,2]
[314405541,1708295443659,-2438.95463491,0.00038,2]
[314405542,1708295443668,-2438.95463491,0.00038,2]
[314405543,1708295443678,-2438.95463491,0.00038,2]
[314405544,1708295443688,-2438.95463491,0.00038,2]
[314405545,1708295443697,-2438.95463491,0.00038,2]
[314405546,1708295443707,-2438.95463491,0.00038,2]
[314405547,1708295443717,-2438.95463491,0.00038,2]
[314405548,1708295443726,-2438.95463491,0.00038,2]
[314405549,1708295443737,-2438.95463491,0.00038,2]
[314405550,1708295443747,-2438.95463491,0.00038,2]
[314405551,1708295443756,-2438.95463491,0.00038,2]
[314405552,1708295443766,-2438.95463491,0.00038,2]
[314405553,1708295443775,-2438.95463491,0.00038,2]
[314405554,1708295443785,-2438.95463491,0.00038,2]
[314405555,1708295443795,-2438.95463491,0.00038,2]
[314405556,1708295443805,-2438.95463491,0.00038,2]
[314405557,1708295443814,-2438.95463491,0.00038,2]
[314405558,1708295443824,-2438.95463491,0.00038,2]
[314405559,1708295443834,-2438.95463491,0.00038,2]
[314405560,1708295443843,-2438.95463491,0.00038,2]
[314405561,1708295443853,-2438.95463491,0.00038,2]
[314405562,1708295443862,-2438.95463491,0.00038,2]
[314405563,1708295443872,-2438.95463491,0.00038,2]
[314405564,1708295443882,-2438.95463491,0.00038,2]
[314405565,1708295443891,-2438.95463491,0.00038,2]
[314405566,1708295443901,-2438.95463491,0.00038,2]
[314405567,1708295443910,-2438.95463491,0.00038,2]
[314405568,1708295443920,-2438.95463491,0.00038,2]
[314405569,1708295443930,-2438.95463491,0.00038,2]
[314405570,1708295443939,-2438.95463491,0.00038,2]
[314405571,1708295443949,-2438.95463491,0.00038,2]
[314405572,1708295443959,-2438.95463491,0.00038,2]
[314405573,1708295443969,-2438.95463491,0.00038,2]
[314405574,1708295443982,-2438.95463491,0.00038,2]
[314405575,1708295443991,-2438.95463491,0.00038,2]
[314405576,1708295444001,-2438.95463491,0.00038,2]
[314405577,1708295444010,-2438.95463491,0.00038,2]
[314405578,1708295444020,-2438.95463491,0.00038,2]
[314405579,1708295444030,-2438.95463491,0.00038,2]
[314405580,1708295444040,-2438.95463491,0.00038,2]
[314405581,1708295444049,-2438.95463491,0.00038,2]
[314405582,1708295444059,-2438.95463491,0.00038,2]
[314405583,1708295444069,-2438.95463491,0.00038,2]
[314405584,1708295444079,-2438.95463491,0.00038,2]
[314405585,1708295444088,-2438.95463491,0.00038,2]
[314405586,1708295444098,-2438.95463491,0.00038,2]
[314405587,1708295444107,-2438.95463491,0.00038,2]
[314405588,1708295444122,-2438.95463491,0.00038,2]
[314405589,1708295444132,-2438.95463491,0.00038,2]
[314405590,1708295444142,-2438.95463491,0.00038,2]
[314405591,1708295444152,-2438.95463491,0.00038,2]
[314405592,1708295444162,-2438.95463491,0.00038,2]
[314405593,1708295444172,-2438.95463491,0.00038,2]
[314405594,1708295444183,-2438.95463491,0.00038,2]
[314405595,1708295444193,-2438.95463491,0.00038,2]
[314405596,1708295444203,-2438.95463491,0.00038,2]
[314405597,1708295444213,-2438.95463491,0.00038,2]
[314405598,1708295444224,-2438.95463491,0.00038,2]
[314405599,1708295444235,-2438.95463491,0.00038,2]
[314405600,1708295444245,-2438.95463491,0.00038,2]
[314405601,1708295444255,-2438.95463491,0.00038,2]
[314405602,1708295444264,-2438.95463491,0.00038,2]
[314405603,1708295444274,-2438.95463491,0.00038,2]
[314405604,1708295444284,-2438.95463491,0.00038,2]
[314405605,1708295444294,-2438.95463491,0.00038,2]
[314405606,1708295444304,-2438.95463491,0.00038,2]
[314405607,1708295444316,-2438.95463491,0.00038,2]
[314405608,1708295444326,-2438.95463491,0.00038,2]
[314405609,1708295444336,-2438.95463491,0.00038,2]
[314405610,1708295444346,-2438.95463491,0.00038,2]
[314405611,1708295444356,-2438.95463491,0.00038,2]
[314405612,1708295444366,-2438.95463491,0.00038,2]
[314405613,1708295444376,-2438.95463491,0.00038,2]
[314405614,1708295444386,-2438.95463491,0.00038,2]
[314405615,1708295444395,-2438.95463491,0.00038,2]
[314405616,1708295444405,-2438.95463491,0.00038,2]
[314405617,1708295444415,-2438.95463491,0.00038,2]
[314405618,1708295444425,-2438.95463491,0.00038,2]
[314405619,1708295444435,-2438.95463491,0.00038,2]
[314405620,1708295444445,-2438.95463491,0.00038,2]
[314405621,1708295444454,-2438.95463491,0.00038,2]
[314405622,1708295444463,-2438.95463491,0.00038,2]
[314405623,1708295444473,-2438.95463491,0.00038,2]
[314405624,1708295444482,-2438.95463491,0.00038,2]
[314405625,1708295444492,-2438.95463491,0.00038,2]
[314405626,1708295444502,-2438.95463491,0.00038,2]
[314405627,1708295444511,-2438.95463491,0.00038,2]
[314405628,1708295444521,-2438.95463491,0.00038,2]
[314405629,1708295444534,-2438.95463491,0.00038,2]
[314405630,1708295444544,-2438.95463491,0.00038,2]
[314405631,1708295444554,-2438.95463491,0.00038,2]
[314405632,1708295444565,-2438.95463491,0.00038,2]
[314405633,1708295444576,-2438.95463491,0.00038,2]
[314405634,1708295444586,-2438.95463491,0.00038,2]
[314405635,1708295444596,-2438.95463491,0.00038,2]
[314405636,1708295444607,-2438.95463491,0.00038,2]
[314405637,1708295444617,-2438.95463491,0.00038,2]
[314405638,1708295444626,-4000.0,0.00038,2]
[314405639,1708295444635,-155.15,0.00038001,2]
[314405640,1708295444644,-333.44,0.0003807,2]
[314405641,1708295444654,-150.0,0.00038087,2]
[314405642,1708295444663,-4489.98120654,0.00038094,14]
[314405643,1708295444673,-1659.21939442,0.00038094,14]
[314405644,1708295444682,-6043.70877456,0.00038094,14]
[314405645,1708295444692,-2340.29726687,0.00038094,14]
[314405646,1708295444701,-5173.65210299,0.00038094,14]
[314405647,1708295444711,-2870.73431749,0.00038094,14]
[314405648,1708295444721,-150.0,0.00038169,2]
[314405649,1708295444730,-430.54820773,0.0003818,11]
[314405650,1708295444740,-275.5,0.000382,2]
[314405651,1708295444749,-426.81950867,0.00038216,2]
[314405652,1708295444758,-1298.76042179,0.00038216,2]
[314405653,1708295444768,-333.44,0.00038264,2]
[314405654,1708295444777,-155.0,0.00038268,2]
[314405655,1708295444787,-250.0,0.00038356,2]
[314405656,1708295444796,-546.51,0.00038356,15]
[314405657,1708295444805,-150.0,0.00038356,2]
[314405658,1708295444815,-259.22,0.00038356,2]
[314405659,1708295444825,-430.54820773,0.00038371,11]
[314405660,1708295444834,-991.0,0.000384,2]
[314405661,1708295444843,-333.44,0.00038458,2]
[314405662,1708295444853,-1250.46,0.00038482,2]
[314405663,1708295444863,-208.82,0.00038493,2]
[314405664,1708295444872,-426.81950867,0.00038525,2]
[314405665,1708295444882,-1298.76042179,0.00038525,2]
[314405666,1708295444892,-695.45,0.0003855,2]
[314405667,1708295444901,-175.0,0.00038553,2]
[314405668,1708295444911,-430.54820773,0.00038562,12]
[314405669,1708295444923,-150.0,0.000386,2]
[314405670,1708295444932,-800.0,0.00038638,5]
[314405671,1708295444942,-200.0,0.00038638,20]
[314405672,1708295444952,-200.0,0.00038638,20]
[314405673,1708295444961,-333.44,0.00038653,2]
[314405674,1708295444971,-318.1,0.000387,2]
[314405675,1708295444982,-430.54820773,0.00038753,12]
[314405676,1708295444992,-426.81950867,0.00038833,2]
[314405677,1708295445001,-1298.76042179,0.00038833,2]
[314405678,1708295445011,-333.44,0.00038847,2]
[314405679,1708295445020,-261.19647275,0.00038849,2]
[314405680,1708295445029,-1784.05963177,0.00038849,2]
[314405681,1708295445039,-19181.33175114,0.00038849,2]
[314405682,1708295445048,-771.98404556,0.00038849,2]
[314405683,1708295445058,-150.1,0.000389,3]
[314405684,1708295445071,-500.0,0.00038904,2]
[314405685,1708295445081,-430.54820773,0.00038945,12]
[314405686,1708295445091,-5000.0,0.00038986,2]
[314405687,1708295445100,-5000.0,0.00038986,2]
[314405688,1708295445110,-5000.0,0.00038986,2]
[314405689,1708295445120,-5000.0,0.00038986,2]
[314405690,1708295445130,-603.5,0.00038999,2]
[314405691,1708295445140,-627.49,0.00038999,2]
[314405692,1708295445150,-1431.65,0.00038999,2]
[314405693,1708295445160,-80066.2387,0.00039,2]
[314405694,1708295445169,-12424.0,0.00039,2]
[314405695,1708295445179,-711.53252592,0.00039,2]
[314405696,1708295445190,-1160.77266,0.00039,2]
[314405697,1708295445200,-150.0,0.00039,2]
[314405701,1708295445414,-333.44,0.00039041,2]
[314405702,1708295445423,-888.57,0.00039043,2]
[314405703,1708295445433,-430.54820773,0.00039136,12]
[314405704,1708295445443,-426.81950867,0.00039142,2]
[314405705,1708295445452,-1298.76042179,0.00039142,2]
[314405706,1708295445461,-275.5,0.000392,2]
[314405707,1708295445470,-180.0,0.00039233,2]
[314405708,1708295445479,-333.44,0.00039235,2]
[314405709,1708295445489,-152.70661212,0.00039241,3]
[314405710,1708295445498,-154.7,0.00039248,2]
[314405711,1708295445507,-1000.0,0.0003926,2]
[314405712,1708295445516,-150.1,0.00039272,2]
[314405713,1708295445525,-1719.63111892,0.00039279,2]
[314405714,1708295445535,-430.54820773,0.00039327,13]
[314405715,1708295445544,-150.0,0.00039366,2]
[314405717,1708295445554,-333.44,0.0003943,2]
[314405718,1708295445563,-166.17,0.00039437,2]
[314405719,1708295445572,-426.81950867,0.0003945,2]
[314405720,1708295445581,-1298.76042179,0.0003945,2]
[314405721,1708295445591,-750.0,0.00039452,2]
[314405722,1708295445600,-158.3,0.00039454,2]
[314405723,1708295445610,-515.97006644,0.00039459,11]
[314405724,1708295445619,-1500.0,0.000395,2]
[314405725,1708295445629,-7794.3386,0.000395,2]
[314405726,1708295445638,-430.54820773,0.00039518,13]
[314405727,1708295445648,-331.4831351,0.0003955,2]
[314405728,1708295445657,-331.48313509,0.0003955,2]
[314405729,1708295445667,-331.48313509,0.0003955,2]
[314405730,1708295445676,-152.87813405,0.00039558,2]
[314405731,1708295445687,-5000.0,0.0003958,2]
[314405732,1708295445697,-171.5,0.00039591,2]
[314405733,1708295445706,-916.9023418,0.000396,2]
[314405734,1708295445716,-152.47,0.000396,3]
[314405735,1708295445725,-152.47,0.000396,3]
[314405736,1708295445736,-152.47,0.000396,3]
[314405737,1708295445745,-152.47,0.000396,3]
[314405738,1708295445754,-152.47,0.000396,3]
[314405739,1708295445764,-152.47,0.000396,3]
[314405740,1708295445773,-152.47,0.000396,3]
[314405741,1708295445782,-152.47,0.000396,3]
[314405742,1708295445791,-4094.82,0.000396,3]
[314405743,1708295445800,-4094.82,0.000396,3]
[314405744,1708295445809,-4094.82,0.000396,3]
[314405745,1708295445818,-4094.82,0.000396,3]
[314405746,1708295445827,-4094.82,0.000396,3]
[314405747,1708295445836,-4094.82,0.000396,3]
[314405748,1708295445846,-4094.82,0.000396,3]
[314405749,1708295445855,-4094.82,0.000396,3]